fUST/lending_fUST_20250506
["ID","MTS","AMOUNT","RATE_DAILY","PERIOD"]
[360071391,1746537040754,-546.85566678,0.00019178,2]
[360071394,1746537040764,-945.54,0.00019178,2]
[360071396,1746537040774,-1114.94,0.00019178,2]
[360071398,1746537040784,-400.0,0.00019178,2]
[360071400,1746537040793,-400.0,0.00019178,2]
[360071401,1746537040803,-500.0,0.00019178,2]
[360071404,1746537040812,-400.0,0.00019178,2]
[360071406,1746537040822,-400.0,0.00019178,2]
[360071408,1746537040831,-400.0,0.00019178,2]
[360071410,1746537040841,-400.0,0.00019178,2]
[360071412,1746537040850,-413.99147478,0.00019178,2]
[360071414,1746537040859,-400.0,0.00019178,2]
[360071415,1746537040870,-400.0,0.00019178,2]
[360071418,1746537040879,-400.0,0.00019178,2]
[360071419,1746537040888,-415.71666421,0.00019178,2]
[360071422,1746537040899,-400.0,0.00019178,2]
[360071424,1746537040908,-400.0,0.00019178,2]
[360071426,1746537040918,-545.57855199,0.00019178,2]
[360071428,1746537040927,-400.0,0.00019178,2]
[360071430,1746537040937,-400.0,0.00019178,2]
[360071432,1746537040947,-400.0,0.00019178,2]
[360071434,1746537040956,-632.14,0.00019178,2]
[360071436,1746537040965,-400.0,0.00019178,2]
[360071438,1746537040977,-899.36,0.00019178,2]
[360071440,1746537040986,-642.18,0.00019178,2]
[360071442,1746537040996,-400.0,0.00019178,2]
[360071444,1746537041006,-400.0,0.00019178,2]
[360071446,1746537041015,-400.0,0.00019178,2]
[360071448,1746537041025,-471.33829854,0.00019178,2]
[360071450,1746537041035,-427.29,0.00019178,2]
[360071452,1746537041045,-1000.98,0.00019178,2]
[360071454,1746537041055,-400.0,0.00019178,2]
[360071456,1746537041064,-400.0,0.00019178,2]
[360071458,1746537041073,-400.0,0.00019178,2]
[360071460,1746537041082,-400.0,0.00019178,2]
[360071462,1746537041092,-404.4157292,0.00019178,2]
[360071464,1746537041102,-400.0,0.00019178,2]
[360071466,1746537041111,-409.34793496,0.00019178,2]
[360071468,1746537041122,-400.0,0.00019178,2]
[360071470,1746537041131,-698.95,0.00019178,2]
[360071472,1746537041145,-4757.32,0.00019178,2]
[360071474,1746537041154,-400.0,0.00019178,2]
[360071476,1746537041164,-500.0,0.00019178,2]
[360071478,1746537041173,-5250.65,0.00019178,2]
[360071480,1746537041184,-400.0,0.00019178,2]
[360071482,1746537041194,-400.0,0.00019178,2]
[360071484,1746537041204,-400.0,0.00019178,2]
[360071486,1746537041213,-400.0,0.00019178,2]
[360071488,1746537041223,-400.0,0.00019178,2]
[360071490,1746537041232,-400.0,0.00019178,2]
[360071492,1746537041242,-400.0,0.00019178,2]
[360071494,1746537041251,-400.0,0.00019178,2]
[360071496,1746537041260,-400.0,0.00019178,2]
[360071498,1746537041270,-400.0,0.00019178,2]
[360071500,1746537041281,-405.97544933,0.00019178,2]
[360071502,1746537041290,-476.07,0.00019178,2]
[360071504,1746537041300,-400.0,0.00019178,2]
[360071507,1746537041311,-3197.59,0.00019178,2]
[360071508,1746537041319,-400.0,0.00019178,2]
[360071510,1746537041329,-400.0,0.00019178,2]
[360071513,1746537041338,-400.0,0.00019178,2]
[360071515,1746537041347,-400.0,0.00019178,2]
[360071517,1746537041357,-783.94,0.00019178,2]
[360071519,1746537041366,-520.62986185,0.00019178,2]
[360071521,1746537041375,-1351.95,0.00019178,2]
[360071522,1746537041384,-400.0,0.00019178,2]
[360071524,1746537041394,-400.0,0.00019178,2]
[360071527,1746537041403,-400.0,0.00019178,2]
[360071529,1746537041413,-667.34,0.00019178,2]
[360071531,1746537041423,-400.0,0.00019178,2]
[360071533,1746537041432,-749.24,0.00019178,2]
[360071535,1746537041442,-300.0,0.00019178,2]
[360071537,1746537041451,-400.0,0.00019178,2]
[360071539,1746537041461,-1358.5,0.00019178,2]
[360071541,1746537041470,-1387.17,0.00019178,2]
[360071543,1746537041479,-400.0,0.00019178,2]
[360071545,1746537041488,-400.0,0.00019178,2]
[360071547,1746537041498,-400.0,0.00019178,2]
[360071549,1746537041508,-931.25,0.00019178,2]
[360071551,1746537041517,-254.14901499,0.00019178,2]
[360071553,1746537041527,-294.05470471,0.00019178,2]
[360071555,1746537041537,-400.0,0.00019178,2]
[360071557,1746537041546,-405.08773928,0.00019178,2]
[360071559,1746537041555,-400.0,0.00019178,2]
[360071561,1746537041564,-400.0,0.00019178,2]
[360071563,1746537041574,-500.0,0.00019178,2]
[360071565,1746537041583,-500.0,0.00019178,2]
[360071567,1746537041593,-423.32174665,0.00019178,2]
[360071569,1746537041602,-779.62,0.00019178,2]
[360071571,1746537041612,-415.4363039,0.00019178,2]
[360071573,1746537041622,-400.0,0.00019178,2]
[360071575,1746537041631,-400.0,0.00019178,2]
[360071577,1746537041641,-412.98,0.00019178,2]
[360071579,1746537041651,-400.0,0.00019178,2]
[360071581,1746537041660,-400.0,0.00019178,2]
[360071583,1746537041670,-500.0,0.00019178,2]
[360071586,1746537041689,-227.19611969,0.00019178,2]
[360071589,1746537041701,-500.0,0.00019178,2]
[360071591,1746537041711,-409.2194187,0.00019178,2]
[360071593,1746537041721,-401.75182003,0.00019178,2]
[360071595,1746537041732,-400.0,0.00019178,2]
[360071597,1746537041742,-400.0,0.00019178,2]
[360071599,1746537041753,-1585.75,0.00019178,2]
[360071601,1746537041763,-425.27,0.00019178,2]
[360071603,1746537041773,-400.0,0.00019178,2]
[360071605,1746537041783,-400.0,0.00019178,2]
[360071607,1746537041793,-400.0,0.00019178,2]
[360071610,1746537041804,-400.0,0.00019178,2]
[360071612,1746537041814,-1160.25,0.00019178,2]
[360071614,1746537041824,-462.51,0.00019178,2]
[360071616,1746537041834,-587.57,0.00019178,2]
[360071618,1746537041844,-400.0,0.00019178,2]
[360071620,1746537041854,-400.0,0.00019178,2]
[360071622,1746537041864,-400.0,0.00019178,2]
[360071624,1746537041873,-225.7124108,0.00019178,2]
[360071626,1746537041883,-400.0,0.00019178,2]
[360071628,1746537041892,-544.2,0.00019178,2]
[360071630,1746537041902,-400.0,0.00019178,2]
[360071632,1746537041912,-423.05283586,0.00019178,2]
[360071634,1746537041922,-400.0,0.00019178,2]
[360071636,1746537041932,-478.83,0.00019178,2]
[360071638,1746537041942,-434.42,0.00019178,2]
[360071640,1746537041952,-333.01240653,0.00019178,2]
[360071642,1746537041963,-404.00366542,0.00019178,2]
[360071644,1746537041973,-405.25870405,0.00019178,2]
[360071646,1746537041982,-400.0,0.00019178,2]
[360071648,1746537041993,-400.0,0.00019178,2]
[360071650,1746537042005,-172.24569406,0.00019178,2]
[360071652,1746537042015,-634.21,0.00019178,2]
[360071654,1746537042025,-400.0,0.00019178,2]
[360071657,1746537042035,-402.59114964,0.00019178,2]
[360071659,1746537042044,-406.9550497,0.00019178,2]
[360071661,1746537042055,-401.79930889,0.00019178,2]
[360071663,1746537042064,-511.6410463,0.00019178,2]
[360071665,1746537042075,-400.0,0.00019178,2]
[360071667,1746537042085,-400.0,0.00019178,2]
[360071669,1746537042095,-400.0,0.00019178,2]
[360071671,1746537042105,-500.0,0.00019178,2]
[360071673,1746537042115,-400.0,0.00019178,2]
[360071675,1746537042125,-408.30801191,0.00019178,2]
[360071677,1746537042138,-404.48488721,0.00019178,2]
[360071679,1746537042148,-400.0,0.00019178,2]
[360071681,1746537042158,-411.65523332,0.00019178,2]
[360071683,1746537042168,-400.0,0.00019178,2]
[360071685,1746537042178,-400.0,0.00019178,2]
[360071687,1746537042188,-400.0,0.00019178,2]
[360071689,1746537042198,-400.0,0.00019178,2]
[360071691,1746537042208,-400.0,0.00019178,2]
[360071694,1746537042218,-400.0,0.00019178,2]
[360071696,1746537042227,-400.0,0.00019178,2]
[360071698,1746537042237,-204.03650267,0.00019178,2]
[360071699,1746537042249,-401.0406252,0.00019178,2]
[360071702,1746537042258,-407.85728117,0.00019178,2]
[360071704,1746537042268,-888.55,0.00019178,2]
[360071706,1746537042277,-400.0,0.00019178,2]
[360071708,1746537042287,-400.0,0.00019178,2]
[360071710,1746537042296,-400.0,0.00019178,2]
[360071712,1746537042305,-402.50494025,0.00019178,2]
[360071714,1746537042316,-400.0,0.00019178,2]
[360071716,1746537042325,-400.0,0.00019178,2]
[360071718,1746537042334,-400.0,0.00019178,2]
[360071720,1746537042343,-400.0,0.00019178,2]
[360071722,1746537042353,-400.0,0.00019178,2]
[360071724,1746537042362,-400.0,0.00019178,2]
[360071726,1746537042372,-400.0,0.00019178,2]
[360071728,1746537042382,-400.0,0.00019178,2]
[360071730,1746537042392,-400.0,0.00019178,2]
[360071732,1746537042402,-400.0,0.00019178,2]
[360071734,1746537042411,-174.01411071,0.00019178,2]
[360071736,1746537042421,-2369.59,0.00019178,2]
[360071738,1746537042431,-401.71114064,0.00019178,2]
[360071740,1746537042440,-1900.63,0.00019178,2]
[360071742,1746537042449,-400.0,0.00019178,2]
[360071744,1746537042459,-453.36,0.00019178,2]
[360071746,1746537042469,-400.0,0.00019178,2]
[360071749,1746537042479,-404.95499723,0.00019178,2]
[360071751,1746537042488,-2540.34,0.00019178,2]
[360071753,1746537042497,-573.9,0.00019178,2]
[360071755,1746537042507,-400.0,0.00019178,2]
[360071757,1746537042516,-400.0,0.00019178,2]
[360071759,1746537042526,-400.0,0.00019178,2]
[360071761,1746537042536,-2189.23,0.00019178,2]
[360071763,1746537042546,-1206.23,0.00019178,2]
[360071765,1746537042555,-400.0,0.00019178,2]
[360071767,1746537042565,-402.38897547,0.00019178,2]
[360071769,1746537042574,-400.0,0.00019178,2]
[360071771,1746537042584,-1035.24,0.00019178,2]
[360071773,1746537042594,-400.0,0.00019178,2]
[360071775,1746537042604,-404.31001341,0.00019178,2]
[360071777,1746537042614,-623.14,0.00019178,2]
[360071779,1746537042623,-400.0,0.00019178,2]
[360071781,1746537042632,-1534.57,0.00019178,2]
[360071783,1746537042642,-404.45956307,0.00019178,2]
[360071785,1746537042651,-405.20107951,0.00019178,2]
[360071787,1746537042660,-400.0,0.00019178,2]
[360071789,1746537042670,-645.34,0.00019178,2]
[360071791,1746537042679,-404.57183447,0.00019178,2]
[360071793,1746537042689,-2203.27,0.00019178,2]
[360071795,1746537042698,-400.0,0.00019178,2]
[360071798,1746537042709,-776.62,0.00019178,2]
[360071799,1746537042718,-400.0,0.00019178,2]
[360071802,1746537042729,-410.72353488,0.00019178,2]
[360071804,1746537042742,-403.01079071,0.00019178,2]
[360071806,1746537042753,-1642.24,0.00019178,2]
[360071808,1746537042764,-400.0,0.00019178,2]
[360071810,1746537042774,-407.0518735,0.00019178,2]
[360071812,1746537042784,-400.0,0.00019178,2]
[360071815,1746537042794,-400.0,0.00019178,2]
[360071817,1746537042804,-400.0,0.00019178,2]
[360071819,1746537042814,-503.11882756,0.00019178,2]
[360071821,1746537042824,-587.04,0.00019178,2]
[360071823,1746537042834,-1855.08,0.00019178,2]
[360071825,1746537042843,-510.47721875,0.00019178,2]
[360071828,1746537042853,-400.0,0.00019178,2]
[360071830,1746537042863,-1793.55,0.00019178,2]
[360071832,1746537042873,-400.0,0.00019178,2]
[360071834,1746537042882,-400.0,0.00019178,2]
[360071836,1746537042892,-400.0,0.00019178,2]
[360071838,1746537042901,-400.0,0.00019178,2]
[360071840,1746537042911,-400.0,0.00019178,2]
[360071842,1746537042921,-400.0,0.00019178,2]
[360071844,1746537042930,-3867.24,0.00019178,2]
[360071846,1746537042939,-1265.1,0.00019178,2]
[360071848,1746537042949,-400.0,0.00019178,2]
[360071850,1746537042959,-1933.42,0.00019178,2]
[360071852,1746537042968,-401.58013962,0.00019178,2]
[360071854,1746537042978,-400.0,0.00019178,2]
[360071855,1746537042987,-400.0,0.00019178,2]
[360071856,1746537042998,-400.0,0.00019178,2]
[360071857,1746537043007,-400.0,0.00019178,2]
[360071867,1746537043017,-400.0,0.00019178,2]
[360071870,1746537043223,-400.0,0.00019178,2]
[360071872,1746537043233,-2254.63,0.00019178,2]
[360071874,1746537043242,-400.0,0.00019178,2]
[360071876,1746537043252,-400.0,0.00019178,2]
[360071878,1746537043262,-2254.63,0.00019178,2]
[360071880,1746537043271,-400.0,0.00019178,2]
[360071882,1746537043280,-2254.63,0.00019178,2]
[360071884,1746537043290,-2254.63,0.00019178,2]
[360071886,1746537043299,-404.99992197,0.00019178,2]
[360071888,1746537043309,-2254.63,0.00019178,2]
[360071890,1746537043319,-400.0,0.00019178,2]
[360071892,1746537043328,-2254.63,0.00019178,2]
[360071894,1746537043337,-2254.63,0.00019178,2]
[360071896,1746537043347,-2254.63,0.00019178,2]
[360071898,1746537043356,-2254.63,0.00019178,2]
[360071900,1746537043366,-400.0,0.00019178,2]
[360071902,1746537043375,-2254.63,0.00019178,2]
[360071905,1746537043385,-2254.63,0.00019178,2]
[360071907,1746537043395,-2254.63,0.00019178,2]
[360071909,1746537043404,-2254.63,0.00019178,2]
[360071911,1746537043413,-488.82,0.00019178,2]
[360071913,1746537043422,-2254.63,0.00019178,2]
[360071915,1746537043432,-2254.63,0.00019178,2]
[360071917,1746537043441,-2254.63,0.00019178,2]
[360071919,1746537043451,-400.0,0.00019178,2]
[360071921,1746537043460,-2254.63,0.00019178,2]
[360071923,1746537043469,-2254.63,0.00019178,2]
[360071925,1746537043479,-2254.63,0.00019178,2]
[360071927,1746537043488,-405.54534969,0.00019178,2]
[360071929,1746537043498,-2254.63,0.00019178,2]
[360071931,1746537043508,-2254.63,0.00019178,2]
[360071933,1746537043517,-400.0,0.00019178,2]
[360071935,1746537043526,-2254.63,0.00019178,2]
[360071937,1746537043536,-2254.63,0.00019178,2]
[360071939,1746537043545,-2254.68123917,0.00019178,2]
[360071941,1746537043554,-403.60401902,0.00019178,2]
[360071942,1746537043563,-400.0,0.00019178,2]
[360071945,1746537043574,-400.0,0.00019178,2]
[360071947,1746537043583,-400.0,0.00019178,2]
[360071949,1746537043592,-400.0,0.00019178,2]
[360071951,1746537043602,-400.0,0.00019178,2]
[360071953,1746537043611,-759.68,0.00019178,2]
[360071955,1746537043621,-400.0,0.00019178,2]
[360071957,1746537043630,-400.0,0.00019178,2]
[360071959,1746537043640,-838.67,0.00019178,2]
[360071961,1746537043650,-400.0,0.00019178,2]
[360071963,1746537043660,-400.0,0.00019178,2]
[360071965,1746537043670,-400.58757107,0.00019178,2]
[360071967,1746537043679,-400.0,0.00019178,2]
[360071969,1746537043688,-1146.74,0.00019178,2]
[360071971,1746537043698,-7094.97,0.00019178,2]
[360071973,1746537043708,-400.0,0.00019178,2]
[360071975,1746537043718,-3302.96,0.00019178,2]
[360071977,1746537043728,-422.12844615,0.00019178,2]
[360071979,1746537043738,-10.09596599,0.00019178,2]
[360072002,1746537043948,-389.90403401,0.00019178,2]
[360072004,1746537043958,-400.0,0.00019178,2]
[360072006,1746537043972,-403.35361379,0.00019178,2]
[360072008,1746537043981,-402.56691022,0.00019178,2]
[360072010,1746537043990,-402.30534856,0.00019178,2]
[360072012,1746537044002,-400.0,0.00019178,2]
[360072014,1746537044012,-400.0,0.00019178,2]
[360072016,1746537044022,-400.0,0.00019178,2]
[360072018,1746537044032,-913.92,0.00019178,2]
[360072020,1746537044042,-153.2741125,0.00019178,2]
[360072022,1746537044052,-400.0,0.00019178,2]
[360072024,1746537044062,-404.73978031,0.00019178,2]
[360072026,1746537044071,-400.0,0.00019178,2]
[360072028,1746537044081,-400.0,0.00019178,2]
[360072030,1746537044091,-503.5525166,0.00019178,2]
[360072032,1746537044100,-400.0,0.00019178,2]
[360072034,1746537044110,-445.08,0.00019178,2]
[360072036,1746537044119,-2265.89,0.00019178,2]
[360072038,1746537044129,-400.0,0.00019178,2]
[360072040,1746537044145,-8315.33,0.00019178,2]
[360072042,1746537044155,-400.0,0.00019178,2]
[360072044,1746537044164,-400.0,0.00019178,2]
[360072046,1746537044173,-400.0,0.00019178,2]
[360072048,1746537044183,-400.0,0.00019178,2]
[360072050,1746537044193,-1684.72,0.00019178,2]
[360072052,1746537044202,-741.85,0.00019178,2]
[360072054,1746537044212,-243.79853704,0.00019178,2]
[360072056,1746537044222,-400.0,0.00019178,2]
[360072058,1746537044231,-400.0,0.00019178,2]
[360072060,1746537044242,-400.0,0.00019178,2]
[360072062,1746537044252,-2395.63,0.00019178,2]
[360072064,1746537044262,-400.0,0.00019178,2]
[360072066,1746537044272,-400.0,0.00019178,2]
[360072068,1746537044282,-400.0,0.00019178,2]
[360072071,1746537044292,-2857.48,0.00019178,2]
[360072073,1746537044303,-400.0,0.00019178,2]
[360072075,1746537044312,-403.49404676,0.00019178,2]
[360072076,1746537044321,-400.0,0.00019178,2]
[360072079,1746537044332,-234.1504007,0.00019178,2]
[360072081,1746537044343,-400.0,0.00019178,2]
[360072083,1746537044353,-400.0,0.00019178,2]
[360072085,1746537044363,-483.19,0.00019178,2]
[360072087,1746537044372,-400.0,0.00019178,2]
[360072089,1746537044381,-1233.28,0.00019178,2]
[360072091,1746537044391,-17097.71,0.00019178,2]
[360072093,1746537044400,-400.0,0.00019178,2]
[360072095,1746537044409,-400.0,0.00019178,2]
[360072097,1746537044418,-400.0,0.00019178,2]
[360072099,1746537044428,-1151.99,0.00019178,2]
[360072101,1746537044437,-6938.29,0.00019178,2]
[360072103,1746537044447,-813.47,0.00019178,2]
[360072105,1746537044456,-400.0,0.00019178,2]
[360072107,1746537044465,-521.0,0.00019178,2]
[360072109,1746537044475,-3070.13,0.00019178,2]
[360072111,1746537044484,-400.0,0.00019178,2]
[360072113,1746537044493,-954.19,0.00019178,2]
[360072115,1746537044503,-400.0,0.00019178,2]
[360072117,1746537044512,-454.11968997,0.00019178,2]
[360072118,1746537044521,-658.36,0.00019178,2]
[360072121,1746537044530,-400.0,0.00019178,2]
[360072123,1746537044540,-401.83508776,0.00019178,2]
[360072125,1746537044549,-400.0,0.00019178,2]
[360072127,1746537044558,-880.02,0.00019178,2]
[360072129,1746537044567,-400.0,0.00019178,2]
[360072131,1746537044577,-400.0,0.00019178,2]
[360072132,1746537044586,-503.74238831,0.00019178,2]
[360072134,1746537044596,-401.30563412,0.00019178,2]
[360072136,1746537044605,-712.06,0.00019178,2]
[360072138,1746537044614,-2193.71,0.00019178,2]
[360072140,1746537044623,-400.0,0.00019178,2]
[360072143,1746537044633,-400.0,0.00019178,2]
[360072145,1746537044643,-401.60716646,0.00019178,2]
[360072147,1746537044652,-400.0,0.00019178,2]
[360072149,1746537044662,-400.0,0.00019178,2]
[360072151,1746537044671,-404.03,0.00019178,2]
[360072153,1746537044681,-503.4654279,0.00019178,2]
[360072155,1746537044690,-521.2,0.00019178,2]
[360072157,1746537044699,-400.0,0.00019178,2]
[360072158,1746537044708,-616.87,0.00019178,2]
[360072161,1746537044717,-400.0,0.00019178,2]
[360072163,1746537044727,-400.0,0.00019178,2]
[360072164,1746537044737,-1197.91,0.00019178,2]
[360072166,1746537044746,-400.0,0.00019178,2]
[360072168,1746537044756,-480.12203808,0.00019178,2]
[360072170,1746537044765,-2644.33,0.00019178,2]
[360072173,1746537044775,-231.68795328,0.00019178,2]
[360072175,1746537044784,-400.0,0.00019178,2]
[360072177,1746537044794,-330.15802287,0.00019178,2]
[360072179,1746537044804,-400.0,0.00019178,2]
[360072181,1746537044813,-2306.71,0.00019178,2]
[360072183,1746537044823,-400.0,0.00019178,2]
[360072185,1746537044832,-1335.6,0.00019178,2]
[360072187,1746537044842,-401.28101685,0.00019178,2]
[360072189,1746537044852,-401.96523987,0.00019178,2]
[360072191,1746537044862,-500.0,0.00019178,2]
[360072193,1746537044871,-3197.82,0.00019178,2]
[360072195,1746537044881,-400.0,0.00019178,2]
[360072197,1746537044891,-400.0,0.00019178,2]
[360072199,1746537044900,-400.0,0.00019178,2]
[360072201,1746537044910,-1809.8,0.00019178,2]
[360072203,1746537044920,-409.23229525,0.00019178,2]
[360072205,1746537044930,-400.0,0.00019178,2]
[360072207,1746537044939,-400.0,0.00019178,2]
[360072209,1746537044949,-2656.38,0.00019178,2]
[360072211,1746537044958,-502.88033462,0.00019178,2]
[360072213,1746537044967,-400.0,0.00019178,2]
[360072215,1746537044976,-495.35070066,0.00019178,2]
[360072217,1746537044986,-405.17132737,0.00019178,2]
[360072219,1746537044995,-400.0,0.00019178,2]
[360072221,1746537045006,-883.62,0.00019178,2]
[360072223,1746537045016,-400.0,0.00019178,2]
[360072225,1746537045026,-400.13538946,0.00019178,2]
[360072227,1746537045037,-4666.72,0.00019178,2]
[360072229,1746537045047,-1904.22,0.00019178,2]
[360072231,1746537045056,-400.0,0.00019178,2]
[360072233,1746537045066,-400.0,0.00019178,2]
[360072235,1746537045075,-1374.51,0.00019178,2]
[360072237,1746537045085,-400.0,0.00019178,2]
[360072239,1746537045094,-400.0,0.00019178,2]
[360072241,1746537045103,-2269.97,0.00019178,2]
[360072243,1746537045114,-400.0,0.00019178,2]
[360072245,1746537045123,-425.58788198,0.00019178,2]
[360072247,1746537045133,-400.0,0.00019178,2]
[360072249,1746537045147,-1480.64,0.00019178,2]
[360072251,1746537045156,-400.0,0.00019178,2]
[360072253,1746537045166,-400.0,0.00019178,2]
[360072255,1746537045175,-400.0,0.00019178,2]
[360072257,1746537045186,-400.0,0.00019178,2]
[360072259,1746537045195,-400.0,0.00019178,2]
[360072262,1746537045205,-400.0,0.00019178,2]
[360072263,1746537045217,-186.6294111,0.00019178,2]
[360072265,1746537045226,-407.34011,0.00019178,2]
[360072267,1746537045235,-1000.0,0.00019179,2]
[360072270,1746537045245,-1000.0,0.00019179,2]
[360072271,1746537045255,-178.75540656,0.00019252,2]
[360072273,1746537045266,-79827.2961807,0.00019329,2]
[360072275,1746537045275,-841.96455721,0.00019352,3]
[360072277,1746537045285,-160.0,0.00019352,3]
[360072280,1746537045294,-212.03916285,0.00019352,3]
[360072282,1746537045303,-12610.21250885,0.00019352,3]
[360072283,1746537045313,-1062.00834784,0.00019412,2]
[360072286,1746537045322,-151.0,0.00019452,2]
[360072287,1746537045332,-151.0,0.00019452,2]
[360072289,1746537045341,-151.0,0.00019452,2]
[360072292,1746537045351,-226.541603,0.00019452,2]
[360072294,1746537045361,-226.541603,0.00019452,2]
[360072296,1746537045371,-151.0,0.00019452,2]
[360072298,1746537045380,-151.0,0.00019452,2]
[360072300,1746537045390,-151.0,0.00019452,2]
[360072302,1746537045399,-400.0,0.00019452,2]
[360072304,1746537045408,-400.0,0.00019452,2]
[360072306,1746537045417,-400.0,0.00019452,2]
[360072308,1746537045427,-400.0,0.00019452,2]
[360072310,1746537045435,-400.0,0.00019452,2]
[360072312,1746537045445,-400.0,0.00019452,2]
[360072314,1746537045454,-400.0,0.00019452,2]
[360072316,1746537045464,-400.0,0.00019452,2]
[360072318,1746537045473,-400.0,0.00019452,2]
[360072319,1746537045482,-525.26858255,0.00019452,2]
[360072321,1746537045491,-400.0,0.00019452,2]
[360072323,1746537045501,-400.0,0.00019452,2]
[360072325,1746537045511,-400.0,0.00019452,2]
[360072327,1746537045520,-641.58,0.00019452,2]
[360072329,1746537045530,-400.0,0.00019452,2]
[360072331,1746537045539,-400.0,0.00019452,2]
[360072333,1746537045548,-151.0,0.00019452,2]
[360072335,1746537045558,-505.5,0.00019452,2]
[360072337,1746537045567,-400.0,0.00019452,2]
[360072340,1746537045576,-400.0,0.00019452,2]
[360072342,1746537045585,-358.0,0.00019452,2]
[360072343,1746537045594,-1000.0,0.00019452,2]
[360072345,1746537045604,-400.0,0.00019452,2]
[360072348,1746537045613,-400.0,0.00019452,2]
[360072350,1746537045622,-400.0,0.00019452,2]
[360072352,1746537045632,-151.0,0.00019452,2]
[360072354,1746537045641,-400.0,0.00019452,2]
[360072356,1746537045651,-151.0,0.00019452,2]
[360072358,1746537045660,-400.0,0.00019452,2]
[360072360,1746537045669,-400.0,0.00019452,2]
[360072362,1746537045679,-151.0,0.00019452,2]
[360072364,1746537045687,-400.0,0.00019452,2]
[360072366,1746537045697,-426.55,0.00019452,2]
[360072368,1746537045706,-522.11415468,0.00019452,2]
[360072370,1746537045715,-400.0,0.00019452,2]
[360072372,1746537045724,-400.0,0.00019452,2]
[360072374,1746537045733,-400.0,0.00019452,2]
[360072375,1746537045742,-542.09,0.00019452,2]
[360072377,1746537045752,-400.0,0.00019452,2]
[360072379,1746537045761,-400.0,0.00019452,2]
[360072381,1746537045770,-151.0,0.00019452,2]
[360072383,1746537045779,-400.0,0.00019452,2]
[360072385,1746537045788,-405.33597327,0.00019452,2]
[360072387,1746537045799,-400.0,0.00019452,2]
[360072389,1746537045809,-174.33508662,0.00019452,2]
[360072391,1746537045819,-400.0,0.00019452,2]
[360072393,1746537045828,-151.0,0.00019452,2]
[360072396,1746537045839,-400.0,0.00019452,2]
[360072397,1746537045849,-151.0,0.00019452,2]
[360072400,1746537045859,-320.306853,0.00019452,2]
[360072402,1746537045868,-320.306853,0.00019452,2]
[360072404,1746537045879,-689.42,0.00019452,2]
[360072406,1746537045888,-514.57,0.00019452,2]
[360072408,1746537045898,-540.38,0.00019452,2]
[360072411,1746537045908,-400.0,0.00019452,2]
[360072413,1746537045917,-400.0,0.00019452,2]
[360072415,1746537045926,-511.19,0.00019452,2]
[360072417,1746537045935,-2574.62,0.00019452,2]
[360072419,1746537045944,-400.0,0.00019452,2]
[360072421,1746537045953,-400.0,0.00019452,2]
[360072424,1746537045963,-151.0,0.00019452,2]
[360072426,1746537045972,-151.0,0.00019452,2]
[360072428,1746537045981,-400.0,0.00019452,2]
[360072430,1746537045990,-400.0,0.00019452,2]
[360072432,1746537046000,-400.0,0.00019452,2]